fUST/lending_fUST_20250408
["ID","MTS","AMOUNT","RATE_DAILY","PERIOD"]
[357509349,1744096240601,-500.0,0.00020127,2]
[357509350,1744096240611,-511.85521551,0.00020127,2]
[357509351,1744096240620,-362.74858654,0.00020127,2]
[357509352,1744096240630,-500.0,0.00020127,2]
[357509353,1744096240640,-500.0,0.00020127,2]
[357509354,1744096240650,-591.85,0.00020127,2]
[357509355,1744096240659,-500.0,0.00020127,2]
[357509356,1744096240669,-500.0,0.00020127,2]
[357509357,1744096240679,-500.0,0.00020127,2]
[357509358,1744096240688,-500.0,0.00020127,2]
[357509359,1744096240698,-500.0,0.00020127,2]
[357509360,1744096240707,-500.0,0.00020127,2]
[357509361,1744096240717,-503.14604997,0.00020127,2]
[357509362,1744096240727,-500.0,0.00020127,2]
[357509363,1744096240736,-1126.37,0.00020127,2]
[357509364,1744096240746,-500.0,0.00020127,2]
[357509365,1744096240755,-500.0,0.00020127,2]
[357509366,1744096240765,-500.0,0.00020127,2]
[357509367,1744096240774,-500.0,0.00020127,2]
[357509368,1744096240784,-500.0,0.00020127,2]
[357509369,1744096240794,-500.0,0.00020127,2]
[357509370,1744096240804,-500.0,0.00020127,2]
[357509371,1744096240813,-500.0,0.00020127,2]
[357509372,1744096240822,-500.0,0.00020127,2]
[357509373,1744096240832,-500.0,0.00020127,2]
[357509374,1744096240841,-500.0,0.00020127,2]
[357509375,1744096240851,-500.0,0.00020127,2]
[357509376,1744096240860,-500.0,0.00020127,2]
[357509377,1744096240870,-500.0,0.00020127,2]
[357509378,1744096240879,-500.0,0.00020127,2]
[357509379,1744096240894,-500.0,0.00020127,2]
[357509380,1744096240908,-500.0,0.00020127,2]
[357509381,1744096240923,-500.0,0.00020127,2]
[357509382,1744096240938,-505.46111321,0.00020127,2]
[357509383,1744096240949,-201.77508506,0.00020127,2]
[357509384,1744096240959,-526.79,0.00020127,2]
[357509385,1744096240969,-500.0,0.00020127,2]
[357509386,1744096240980,-500.0,0.00020127,2]
[357509387,1744096240989,-500.0,0.00020127,2]
[357509388,1744096241000,-500.0,0.00020127,2]
[357509389,1744096241009,-500.0,0.00020127,2]
[357509390,1744096241020,-517.43,0.00020127,2]
[357509391,1744096241031,-500.0,0.00020127,2]
[357509392,1744096241041,-500.0,0.00020127,2]
[357509393,1744096241051,-500.0,0.00020127,2]
[357509394,1744096241061,-500.0,0.00020127,2]
[357509395,1744096241071,-500.0,0.00020127,2]
[357509396,1744096241081,-500.0,0.00020127,2]
[357509397,1744096241090,-500.0,0.00020127,2]
[357509398,1744096241100,-500.0,0.00020128,2]
[357509399,1744096241111,-500.0,0.00020128,2]
[357509400,1744096241120,-500.0,0.00020128,2]
[357509401,1744096241132,-500.0,0.00020128,2]
[357509402,1744096241143,-500.0,0.00020128,2]
[357509403,1744096241153,-639.32,0.00020128,2]
[357509404,1744096241164,-500.0,0.00020128,2]
[357509405,1744096241175,-500.0,0.00020128,2]
[357509406,1744096241184,-500.0,0.00020128,2]
[357509407,1744096241194,-519.12,0.00020128,2]
[357509408,1744096241207,-505.2974303,0.00020128,2]
[357509409,1744096241224,-500.0,0.00020128,2]
[357509410,1744096241235,-500.0,0.00020128,2]
[357509411,1744096241244,-500.0,0.00020128,2]
[357509412,1744096241255,-500.0,0.00020128,2]
[357509413,1744096241265,-500.0,0.00020128,2]
[357509414,1744096241275,-500.0,0.00020128,2]
[357509415,1744096241285,-500.0,0.00020128,2]
[357509416,1744096241295,-500.0,0.00020128,2]
[357509417,1744096241305,-574.23,0.00020128,2]
[357509418,1744096241315,-500.0,0.00020128,2]
[357509419,1744096241325,-500.0,0.00020128,2]
[357509420,1744096241336,-316.82151357,0.00020128,2]
[357509421,1744096241346,-500.0,0.00020128,2]
[357509422,1744096241356,-500.0,0.00020128,2]
[357509423,1744096241366,-380.76623055,0.00020128,2]
[357509424,1744096241376,-500.0,0.00020128,2]
[357509425,1744096241387,-631.26,0.00020128,2]
[357509426,1744096241398,-500.0,0.00020128,2]
[357509427,1744096241407,-500.0,0.00020128,2]
[357509428,1744096241418,-524.67,0.00020128,2]
[357509429,1744096241428,-500.0,0.00020128,2]
[357509430,1744096241438,-976.47,0.00020128,2]
[357509431,1744096241449,-603.97,0.00020128,2]
[357509432,1744096241459,-500.0,0.00020128,2]
[357509433,1744096241469,-500.0,0.00020173,2]
[357509434,1744096241479,-646.63193914,0.00020173,2]
[357509435,1744096241490,-152.0,0.00020177,2]
[357509436,1744096241500,-500.0,0.00020228,2]
[357509437,1744096241510,-500.0,0.000203,2]
[357509438,1744096241526,-382.14477807,0.000203,2]
[357509439,1744096241535,-1733.29,0.000203,2]
[357509440,1744096241545,-1572.23,0.000203,2]
[357509441,1744096241555,-760.4,0.000203,2]
[357509442,1744096241565,-691.08,0.000203,2]
[357509443,1744096241575,-911.97,0.000203,2]
[357509444,1744096241584,-500.0,0.000203,2]
[357509445,1744096241622,-500.0,0.000203,2]
[357509446,1744096241632,-518.54,0.000203,2]
[357509447,1744096241642,-466.46601407,0.000203,2]
[357509448,1744096241652,-948.06,0.000203,2]
[357509449,1744096241662,-500.0,0.000203,2]
[357509450,1744096241671,-500.0,0.00020301,2]
[357509451,1744096241681,-500.0,0.00020301,2]
[357509452,1744096241690,-627.33294908,0.00020301,2]
[357509453,1744096241699,-500.0,0.00020301,2]
[357509454,1744096241708,-500.0,0.00020301,2]
[357509455,1744096241718,-500.0,0.00020301,2]
[357509456,1744096241728,-500.0,0.00020301,2]
[357509457,1744096241737,-500.0,0.00020301,2]
[357509458,1744096241746,-555.97,0.00020301,2]
[357509459,1744096241755,-500.0,0.00020301,2]
[357509460,1744096241765,-500.0,0.00020301,2]
[357509461,1744096241774,-500.0,0.00020301,2]
[357509462,1744096241784,-500.0,0.00020301,2]
[357509463,1744096241793,-616.17,0.00020301,2]
[357509464,1744096241803,-500.0,0.00020301,2]
[357509465,1744096241812,-463.79323441,0.00020301,2]
[357509466,1744096241821,-500.0,0.00020301,2]
[357509467,1744096241830,-500.0,0.00020301,2]
[357509468,1744096241840,-512.01244241,0.00020301,2]
[357509469,1744096241849,-500.0,0.00020301,2]
[357509470,1744096241858,-500.0,0.00020301,2]
[357509471,1744096241867,-500.0,0.00020301,2]
[357509472,1744096241877,-500.0,0.00020301,2]
[357509473,1744096241887,-500.0,0.00020301,2]
[357509474,1744096241896,-500.0,0.00020301,2]
[357509475,1744096241905,-500.0,0.00020301,2]
[357509476,1744096241914,-500.0,0.00020301,2]
[357509477,1744096241924,-500.0,0.00020301,2]
[357509478,1744096241934,-500.0,0.00020301,2]
[357509479,1744096241943,-500.0,0.00020301,2]
[357509480,1744096241952,-505.58,0.00020301,2]
[357509481,1744096241962,-500.0,0.00020301,2]
[357509482,1744096241971,-542.36,0.00020301,2]
[357509483,1744096241980,-500.0,0.00020301,2]
[357509484,1744096241989,-500.0,0.00020301,2]
[357509485,1744096241999,-343.36359289,0.00020301,2]
[357509486,1744096242008,-871.23,0.00020301,2]
[357509487,1744096242017,-500.0,0.00020301,2]
[357509488,1744096242026,-195.30953268,0.00020301,2]
[357509489,1744096242036,-500.0,0.00020301,2]
[357509490,1744096242046,-574.78,0.00020301,2]
[357509491,1744096242055,-500.0,0.00020301,2]
[357509492,1744096242065,-500.0,0.00020301,2]
[357509493,1744096242075,-5430.84,0.00020301,2]
[357509494,1744096242084,-500.0,0.00020301,2]
[357509495,1744096242094,-580.0755075,0.00020301,2]
[357509496,1744096242103,-500.0,0.00020301,2]
[357509497,1744096242112,-500.0,0.00020301,2]
[357509498,1744096242121,-340.52050501,0.00020301,2]
[357509499,1744096242130,-500.0,0.00020301,2]
[357509500,1744096242140,-500.0,0.00020301,2]
[357509501,1744096242149,-1158.68,0.00020301,2]
[357509502,1744096242158,-566.0,0.00020301,2]
[357509503,1744096242168,-500.0,0.00020301,2]
[357509504,1744096242177,-600.12,0.00020301,2]
[357509505,1744096242186,-500.0,0.00020301,2]
[357509506,1744096242196,-500.0,0.00020301,2]
[357509507,1744096242205,-1018.84,0.00020302,2]
[357509508,1744096242214,-651.19,0.00020302,2]
[357509509,1744096242223,-500.0,0.00020302,2]
[357509510,1744096242232,-864.85,0.00020302,2]
[357509511,1744096242243,-2875.12,0.00020302,2]
[357509512,1744096242253,-1322.83,0.00020302,2]
[357509513,1744096242262,-500.0,0.00020302,2]
[357509514,1744096242271,-2696.02,0.00020302,2]
[357509515,1744096242280,-652.71,0.00020302,2]
[357509516,1744096242290,-492.93,0.00020401,2]
[357509517,1744096242299,-500.0,0.00020401,2]
[357509518,1744096242309,-500.0,0.00020401,2]
[357509519,1744096242318,-500.0,0.00020401,2]
[357509520,1744096242328,-500.0,0.00020401,2]
[357509521,1744096242337,-1126.37,0.00020401,2]
[357509522,1744096242347,-500.0,0.00020401,2]
[357509524,1744096242356,-500.0,0.00020401,2]
[357509526,1744096242365,-406.87,0.00020401,2]
[357509527,1744096242374,-500.0,0.00020401,2]
[357509528,1744096242384,-500.0,0.00020401,2]
[357509529,1744096242393,-500.0,0.00020401,2]
[357509530,1744096242402,-500.0,0.00020401,2]
[357509531,1744096242412,-500.0,0.00020401,2]
[357509532,1744096242421,-500.0,0.00020401,2]
[357509533,1744096242431,-500.0,0.00020401,2]
[357509534,1744096242440,-500.0,0.00020401,2]
[357509535,1744096242450,-500.0,0.00020401,2]
[357509536,1744096242459,-500.0,0.00020401,2]
[357509537,1744096242469,-500.0,0.00020401,2]
[357509538,1744096242478,-500.0,0.00020401,2]
[357509539,1744096242487,-517.43,0.00020401,2]
[357509540,1744096242496,-526.82758885,0.00020401,2]
[357509541,1744096242506,-500.0,0.00020401,2]
[357509542,1744096242517,-500.0,0.00020401,2]
[357509543,1744096242526,-500.0,0.00020401,2]
[357509544,1744096242536,-500.0,0.00020401,2]
[357509546,1744096242545,-175.06,0.00020401,2]
[357509547,1744096242555,-500.0,0.00020401,2]
[357509548,1744096242565,-500.0,0.00020402,2]
[357509549,1744096242575,-500.0,0.00020402,2]
[357509550,1744096242584,-500.0,0.00020402,2]
[357509551,1744096242594,-500.0,0.00020402,2]
[357509552,1744096242604,-639.32,0.00020402,2]
[357509553,1744096242613,-500.0,0.00020402,2]
[357509554,1744096242622,-500.0,0.00020402,2]
[357509555,1744096242632,-500.0,0.00020402,2]
[357509556,1744096242642,-519.12,0.00020402,2]
[357509557,1744096242651,-500.0,0.00020402,2]
[357509558,1744096242661,-500.0,0.00020402,2]
[357509559,1744096242670,-500.0,0.00020402,2]
[357509560,1744096242679,-500.0,0.00020402,2]
[357509561,1744096242689,-558.46,0.00020402,2]
[357509562,1744096242699,-500.0,0.00020402,2]
[357509563,1744096242708,-574.23,0.00020402,2]
[357509564,1744096242718,-500.0,0.00020402,2]
[357509565,1744096242728,-500.0,0.00020402,2]
[357509566,1744096242737,-500.0,0.00020402,2]
[357509567,1744096242747,-500.0,0.00020402,2]
[357509568,1744096242757,-500.0,0.00020402,2]
[357509569,1744096242766,-631.26,0.00020402,2]
[357509570,1744096242777,-500.0,0.00020402,2]
[357509571,1744096242786,-522.43683688,0.00020402,2]
[357509572,1744096242796,-524.67,0.00020402,2]
[357509573,1744096242805,-976.47,0.00020402,2]
[357509574,1744096242815,-500.0,0.00020402,2]
[357509575,1744096242824,-175.43389009,0.00020502,2]
[357509576,1744096242834,-500.0,0.00020574,2]
[357509577,1744096242843,-1733.29,0.00020574,2]
[357509578,1744096242852,-1572.23,0.00020574,2]
[357509579,1744096242862,-760.4,0.00020574,2]
[357509580,1744096242871,-691.08,0.00020574,2]
[357509581,1744096242882,-911.97,0.00020574,2]
[357509582,1744096242891,-500.0,0.00020574,2]
[357509583,1744096242901,-500.0,0.00020574,2]
[357509584,1744096242911,-518.54,0.00020574,2]
[357509585,1744096242920,-948.06,0.00020574,2]
[357509586,1744096242930,-500.0,0.00020574,2]
[357509587,1744096242940,-186.38443443,0.00020575,2]
[357509588,1744096242950,-500.0,0.00020575,2]
[357509589,1744096242960,-500.0,0.00020575,2]
[357509590,1744096242969,-500.0,0.00020575,2]
[357509591,1744096242978,-500.0,0.00020575,2]
[357509592,1744096242988,-500.0,0.00020575,2]
[357509593,1744096242997,-500.0,0.00020575,2]
[357509594,1744096243007,-500.0,0.00020575,2]
[357509595,1744096243016,-500.0,0.00020575,2]
[357509596,1744096243025,-500.0,0.00020575,2]
[357509597,1744096243034,-500.0,0.00020575,2]
[357509598,1744096243044,-500.0,0.00020575,2]
[357509599,1744096243054,-500.0,0.00020575,2]
[357509600,1744096243063,-540.65,0.00020575,2]
[357509601,1744096243072,-500.0,0.00020575,2]
[357509602,1744096243082,-500.0,0.00020575,2]
[357509603,1744096243091,-500.0,0.00020575,2]
[357509604,1744096243100,-171.58992146,0.00020575,2]
[357509605,1744096243109,-500.0,0.00020575,2]
[357509606,1744096243118,-500.0,0.00020575,2]
[357509607,1744096243128,-505.58,0.00020575,2]
[357509608,1744096243138,-500.0,0.00020575,2]
[357509609,1744096243147,-542.36,0.00020575,2]
[357509610,1744096243157,-500.0,0.00020575,2]
[357509611,1744096243166,-500.0,0.00020575,2]
[357509612,1744096243175,-871.23,0.00020575,2]
[357509613,1744096243184,-363.42,0.00020575,2]
[357509614,1744096243194,-500.0,0.00020575,2]
[357509615,1744096243203,-574.78,0.00020575,2]
[357509616,1744096243213,-500.0,0.00020575,2]
[357509617,1744096243222,-5430.84,0.00020575,2]
[357509618,1744096243232,-500.0,0.00020575,2]
[357509619,1744096243241,-500.0,0.00020575,2]
[357509620,1744096243251,-500.0,0.00020575,2]
[357509621,1744096243260,-500.0,0.00020575,2]
[357509622,1744096243270,-1158.68,0.00020575,2]
[357509623,1744096243279,-566.0,0.00020575,2]
[357509624,1744096243289,-500.0,0.00020575,2]
[357509625,1744096243298,-600.12,0.00020575,2]
[357509626,1744096243308,-500.0,0.00020575,2]
[357509627,1744096243317,-500.0,0.00020575,2]
[357509628,1744096243327,-1018.84,0.00020576,2]
[357509629,1744096243336,-651.19,0.00020576,2]
[357509630,1744096243346,-500.0,0.00020576,2]
[357509631,1744096243355,-864.85,0.00020576,2]
[357509632,1744096243365,-2875.12,0.00020576,2]
[357509633,1744096243374,-1322.83,0.00020576,2]
[357509634,1744096243385,-500.0,0.00020576,2]
[357509635,1744096243394,-2696.02,0.00020576,2]
[357509636,1744096243404,-652.71,0.00020576,2]
[357509637,1744096243413,-500.0,0.00020675,2]
[357509638,1744096243423,-518.8951867,0.00020675,2]
[357509639,1744096243432,-1126.37,0.00020675,2]
[357509640,1744096243442,-154.28,0.00020675,2]
[357509641,1744096243451,-500.0,0.00020675,2]
[357509642,1744096243461,-500.0,0.00020675,2]
[357509643,1744096243470,-500.0,0.00020675,2]
[357509644,1744096243480,-500.0,0.00020675,2]
[357509645,1744096243490,-500.0,0.00020675,2]
[357509646,1744096243499,-500.0,0.00020675,2]
[357509648,1744096243509,-500.0,0.00020675,2]
[357509650,1744096243521,-500.0,0.00020675,2]
[357509651,1744096243530,-500.0,0.00020675,2]
[357509652,1744096243539,-517.43,0.00020675,2]
[357509653,1744096243549,-409.51,0.00020675,2]
[357509654,1744096243558,-539.4985131,0.00020675,2]
[357509655,1744096243568,-500.0,0.00020675,2]
[357509657,1744096243577,-500.0,0.00020676,2]
[357509659,1744096243586,-500.0,0.00020676,2]
[357509661,1744096243598,-500.0,0.00020676,2]
[357509662,1744096243608,-500.0,0.00020676,2]
[357509664,1744096243617,-639.32,0.00020676,2]
[357509666,1744096243627,-500.0,0.00020676,2]
[357509668,1744096243637,-500.0,0.00020676,2]
[357509670,1744096243646,-519.12,0.00020676,2]
[357509671,1744096243656,-500.0,0.00020676,2]
[357509673,1744096243665,-500.0,0.00020676,2]
[357509674,1744096243675,-500.0,0.00020676,2]
[357509676,1744096243684,-599.18,0.00020676,2]
[357509678,1744096243694,-574.23,0.00020676,2]
[357509679,1744096243704,-500.0,0.00020676,2]
[357509680,1744096243715,-500.0,0.00020676,2]
[357509681,1744096243726,-295.92913416,0.00020676,2]
[357509682,1744096243736,-500.0,0.00020676,2]
[357509683,1744096243746,-631.26,0.00020676,2]
[357509684,1744096243755,-524.67,0.00020676,2]
[357509685,1744096243765,-976.47,0.00020676,2]
[357509686,1744096243775,-500.0,0.00020676,2]
[357509687,1744096243784,-500.0,0.00020848,2]
[357509688,1744096243794,-1733.29,0.00020848,2]
[357509689,1744096243803,-1572.23,0.00020848,2]
[357509690,1744096243813,-760.4,0.00020848,2]
[357509691,1744096243823,-691.08,0.00020848,2]
[357509692,1744096243832,-911.97,0.00020848,2]
[357509693,1744096243841,-500.0,0.00020848,2]
[357509694,1744096243851,-500.0,0.00020848,2]
[357509695,1744096243860,-518.54,0.00020848,2]
[357509696,1744096243870,-948.06,0.00020848,2]
[357509697,1744096243879,-500.0,0.00020848,2]
[357509698,1744096243889,-500.0,0.00020849,2]
[357509699,1744096243899,-500.0,0.00020849,2]
[357509700,1744096243909,-500.0,0.00020849,2]
[357509701,1744096243918,-500.0,0.00020849,2]
[357509702,1744096243928,-500.0,0.00020849,2]
[357509703,1744096243937,-500.0,0.00020849,2]
[357509704,1744096243947,-500.0,0.00020849,2]
[357509705,1744096243957,-500.0,0.00020849,2]
[357509706,1744096243967,-500.0,0.00020849,2]
[357509707,1744096243977,-500.0,0.00020849,2]
[357509708,1744096243987,-500.0,0.00020849,2]
[357509709,1744096243996,-500.0,0.00020849,2]
[357509710,1744096244006,-500.0,0.00020849,2]
[357509711,1744096244016,-372.61494713,0.00020849,2]
[357509712,1744096244025,-632.07962547,0.00020849,2]
[357509713,1744096244036,-500.0,0.00020849,2]
[357509714,1744096244046,-505.58,0.00020849,2]
[357509715,1744096244057,-500.0,0.00020849,2]
[357509716,1744096244066,-542.36,0.00020849,2]
[357509717,1744096244076,-644.42,0.00020849,2]
[357509718,1744096244086,-500.0,0.00020849,2]
[357509719,1744096244096,-871.23,0.00020849,2]
[357509720,1744096244106,-500.0,0.00020849,2]
[357509721,1744096244116,-574.78,0.00020849,2]
[357509722,1744096244126,-500.0,0.00020849,2]
[357509723,1744096244136,-5430.84,0.00020849,2]
[357509724,1744096244146,-500.0,0.00020849,2]
[357509725,1744096244156,-500.0,0.00020849,2]
[357509726,1744096244166,-500.0,0.00020849,2]
[357509727,1744096244175,-500.0,0.00020849,2]
[357509728,1744096244185,-1158.68,0.00020849,2]
[357509729,1744096244195,-566.0,0.00020849,2]
[357509730,1744096244205,-500.0,0.00020849,2]
[357509731,1744096244215,-600.12,0.00020849,2]
[357509732,1744096244226,-500.0,0.00020849,2]
[357509733,1744096244236,-500.0,0.00020849,2]
[357509734,1744096244245,-1018.84,0.0002085,2]
[357509735,1744096244255,-651.19,0.0002085,2]
[357509736,1744096244265,-500.0,0.0002085,2]
[357509737,1744096244274,-864.85,0.0002085,2]
[357509738,1744096244284,-2875.12,0.0002085,2]
[357509739,1744096244294,-1322.83,0.0002085,2]
[357509740,1744096244303,-500.0,0.0002085,2]
[357509741,1744096244313,-2696.02,0.0002085,2]
[357509742,1744096244322,-652.71,0.0002085,2]
[357509743,1744096244332,-500.0,0.00020949,2]
[357509744,1744096244342,-1126.37,0.00020949,2]
[357509745,1744096244351,-221.71,0.00020949,2]
[357509746,1744096244361,-500.0,0.00020949,2]
[357509747,1744096244371,-500.0,0.00020949,2]
[357509748,1744096244380,-500.0,0.00020949,2]
[357509749,1744096244390,-500.59,0.00020949,2]
[357509750,1744096244400,-500.0,0.00020949,2]
[357509751,1744096244410,-500.0,0.00020949,2]
[357509752,1744096244420,-500.0,0.00020949,2]
[357509753,1744096244430,-517.43,0.00020949,2]
[357509754,1744096244439,-500.0,0.00020949,2]
[357509755,1744096244449,-500.0,0.0002095,2]
[357509756,1744096244459,-500.0,0.0002095,2]
[357509757,1744096244469,-500.0,0.0002095,2]
[357509758,1744096244479,-500.0,0.0002095,2]
[357509759,1744096244489,-639.32,0.0002095,2]
[357509760,1744096244499,-500.0,0.0002095,2]
[357509761,1744096244509,-519.12,0.0002095,2]
[357509762,1744096244523,-500.0,0.0002095,2]
[357509763,1744096244533,-500.0,0.0002095,2]
[357509764,1744096244542,-500.0,0.0002095,2]
[357509765,1744096244552,-574.23,0.0002095,2]
[357509766,1744096244563,-178.65,0.0002095,2]
[357509767,1744096244574,-231.29396146,0.0002095,2]
[357509768,1744096244584,-500.0,0.0002095,2]
[357509769,1744096244596,-631.26,0.0002095,2]
[357509770,1744096244606,-524.67,0.0002095,2]
[357509771,1744096244616,-976.47,0.0002095,2]
[357509772,1744096244626,-393.5190879,0.0002095,2]
[357509773,1744096244636,-501.28287713,0.00020977,2]
[357509774,1744096244646,-435.50982937,0.00020977,2]
[357509775,1744096244655,-165.09083967,0.00020977,2]
[357509776,1744096244665,-500.0,0.00020977,2]
[357509777,1744096244675,-500.0,0.00020977,2]
[357509778,1744096244684,-500.0,0.00020977,2]
[357509779,1744096244694,-500.0,0.00020977,2]
[357509780,1744096244704,-500.0,0.00020977,2]
[357509781,1744096244713,-501.06145219,0.00020977,2]
[357509782,1744096244724,-500.0,0.00020977,2]
[357509783,1744096244854,-552.26994576,0.00020977,2]
[357509784,1744096244864,-510.33701651,0.00020977,2]
[357509785,1744096244874,-500.0,0.00020977,2]
[357509786,1744096244884,-500.0,0.00020977,2]
[357509787,1744096244893,-500.0,0.00020977,2]
[357509788,1744096244902,-500.0,0.00020977,2]
[357509789,1744096244911,-500.0,0.00020977,2]
[357509790,1744096244921,-500.0,0.00020977,2]
[357509791,1744096244930,-500.0,0.00020977,2]
[357509792,1744096244940,-500.58205629,0.00020977,2]
[357509793,1744096244949,-500.0,0.00020977,2]
[357509794,1744096244959,-500.0,0.00020977,2]
[357509795,1744096244968,-500.0,0.00020977,2]
[357509796,1744096244977,-500.0,0.00020977,2]
[357509797,1744096244987,-500.0,0.00020977,2]
[357509798,1744096244997,-608.3465431,0.00020977,2]
[357509799,1744096245006,-46253.36198467,0.00021012,2]
[357509800,1744096245016,-500.0,0.00021122,2]
[357509801,1744096245025,-1733.29,0.00021122,2]
[357509802,1744096245034,-1572.23,0.00021122,2]
[357509803,1744096245044,-760.4,0.00021122,2]
[357509804,1744096245053,-691.08,0.00021122,2]
[357509805,1744096245063,-911.97,0.00021122,2]
[357509806,1744096245072,-500.0,0.00021122,2]
[357509807,1744096245082,-500.0,0.00021122,2]
[357509808,1744096245092,-518.54,0.00021122,2]
[357509809,1744096245102,-948.06,0.00021122,2]
[357509810,1744096245111,-500.0,0.00021122,2]
[357509811,1744096245120,-500.0,0.00021123,2]
[357509812,1744096245130,-500.0,0.00021123,2]
[357509813,1744096245140,-500.0,0.00021123,2]
[357509814,1744096245150,-500.0,0.00021123,2]
[357509815,1744096245159,-500.0,0.00021123,2]
[357509816,1744096245168,-500.0,0.00021123,2]
[357509817,1744096245178,-500.0,0.00021123,2]
[357509818,1744096245187,-467.59,0.00021123,2]
[357509819,1744096245197,-500.0,0.00021123,2]
[357509820,1744096245206,-500.0,0.00021123,2]
[357509821,1744096245216,-500.0,0.00021123,2]
[357509822,1744096245226,-500.0,0.00021123,2]
[357509823,1744096245235,-505.58,0.00021123,2]
[357509824,1744096245245,-542.36,0.00021123,2]
[357509825,1744096245254,-623.87040879,0.00021123,2]
[357509826,1744096245263,-871.23,0.00021123,2]
[357509827,1744096245273,-500.0,0.00021123,2]
[357509828,1744096245283,-574.78,0.00021123,2]
[357509829,1744096245292,-500.0,0.00021123,2]
[357509830,1744096245302,-5430.84,0.00021123,2]
[357509831,1744096245312,-351.79132055,0.00021123,2]
[357509832,1744096245321,-500.0,0.00021123,2]
[357509833,1744096245330,-500.0,0.00021123,2]
[357509835,1744096245340,-1158.68,0.00021123,2]
[357509836,1744096245349,-566.0,0.00021123,2]
[357509837,1744096245359,-500.0,0.00021123,2]
[357509838,1744096245368,-600.12,0.00021123,2]
[357509839,1744096245377,-500.0,0.00021123,2]
[357509840,1744096245387,-500.0,0.00021123,2]
[357509841,1744096245396,-1018.84,0.00021124,2]
[357509842,1744096245406,-651.19,0.00021124,2]
[357509843,1744096245415,-500.0,0.00021124,2]
[357509844,1744096245425,-864.85,0.00021124,2]
[357509845,1744096245434,-2875.12,0.00021124,2]
[357509846,1744096245444,-1322.83,0.00021124,2]
[357509847,1744096245454,-500.0,0.00021124,2]
[357509848,1744096245463,-2696.02,0.00021124,2]
[357509850,1744096245473,-652.71,0.00021124,2]
[357509851,1744096245482,-500.0,0.00021223,2]
[357509852,1744096245492,-1126.37,0.00021223,2]
[357509853,1744096245501,-500.0,0.00021223,2]
[357509854,1744096245511,-500.0,0.00021223,2]
[357509857,1744096245524,-500.0,0.00021223,2]
[357509859,1744096245534,-517.43,0.00021223,2]
[357509860,1744096245543,-500.0,0.00021224,2]
[357509861,1744096245552,-565.7,0.00021224,2]
[357509862,1744096245562,-500.0,0.00021224,2]
[357509863,1744096245572,-639.32,0.00021224,2]
[357509864,1744096245581,-500.0,0.00021224,2]
[357509865,1744096245590,-519.12,0.00021224,2]
[357509866,1744096245602,-500.0,0.00021224,2]
[357509867,1744096245611,-500.0,0.00021224,2]
[357509868,1744096245620,-502.55999406,0.00021224,2]